bitfinex/quotes_SOLUSD_20240613
["timestamp","ask_amount","ask_price","bid_price","bid_amount"]
[1718253101098,0.34,152.62,152.58,8.26]
[1718253103399,0.34,152.62,152.57,8.26]
[1718253103613,15.0064,152.6,152.48,16.1466]
[1718253103787,8.26,152.57,152.48,16.1466]
[1718253103990,15.7256,152.56,152.48,16.1466]
[1718253104208,23.9856,152.56,152.51,8.26]
[1718253105592,23.9856,152.56,152.46,6.3591]
[1718253105796,8.26,152.55,152.44,16.0029]
[1718253106035,8.43,152.54,152.49,8.26]
[1718253106393,8.43,152.54,152.5,8.26]
[1718253106394,0.17,152.54,152.5,8.26]
[1718253107428,0.34,152.54,152.44,16.0029]
[1718253107728,8.6,152.54,152.49,8.26]
[1718253109228,8.43,152.52,152.47,8.26]
[1718253109436,0.17,152.51,152.47,8.26]
[1718253109616,0.17,152.51,152.42,6.5695]
[1718253110028,0.17,152.51,152.4,15.0069]
[1718253110230,15.15,152.5,152.46,8.26]
[1718253110427,15.15,152.5,152.4,48.0469]
[1718253110725,15.15,152.5,152.46,8.26]
[1718253111131,15.15,152.5,152.4,15.0069]
[1718253111435,15.15,152.5,152.47,8.26]
[1718253112117,15.15,152.5,152.48,8.26]
[1718253112711,0.17,152.52,152.48,8.26]
[1718253112916,0.34,152.53,152.49,8.26]
[1718253113134,0.17,152.53,152.41,0.17]
[1718253113322,0.34,152.53,152.49,8.26]
[1718253113539,0.17,152.53,152.49,8.26]
[1718253113931,0.17,152.53,152.5,8.26]
[1718253114150,0.17,152.53,152.49,8.26]
[1718253114445,0.17,152.53,152.41,0.68]
[1718253114745,0.17,152.53,152.48,8.26]
[1718253116025,8.26,152.52,152.47,8.26]
[1718253116442,0.68,152.51,152.4,48.0469]
[1718253116650,0.68,152.51,152.47,8.26]
[1718253117222,8.94,152.51,152.46,8.26]
[1718253117645,0.68,152.51,152.46,8.26]
[1718253118031,0.34,152.51,152.46,8.26]
[1718253118344,0.34,152.51,152.4,53.19359712]
[1718253118557,0.34,152.51,152.46,8.26]
[1718253118960,0.17,152.51,152.47,8.26]
[1718253119170,0.17,152.53,152.48,8.26]
[1718253119452,0.68,152.53,152.49,8.26]
[1718253120526,22.3574,152.54,152.49,8.26]
[1718253120747,16.2435,152.54,152.52,8.26]
[1718253121239,21.7249,152.58,152.48,8.26]
[1718253121440,21.7249,152.58,152.54,8.26]
[1718253121643,21.7249,152.58,152.53,8.26]
[1718253121850,29.9849,152.58,152.53,8.26]
[1718253122655,8.26,152.57,152.52,8.26]
[1718253123043,30.1549,152.58,152.52,8.26]
[1718253123248,0.17,152.57,152.53,8.26]
[1718253124327,0.17,152.57,152.49,20.0]
[1718253124549,0.17,152.57,152.53,8.26]
[1718253125130,21.7249,152.58,152.55,8.26]
[1718253125357,21.7249,152.58,152.47,20.17]
[1718253125531,21.7249,152.58,152.54,8.26]
[1718253125741,29.9849,152.58,152.52,8.26]
[1718253126456,0.34,152.57,152.52,8.26]
[1718253127141,0.34,152.57,152.52,7.76]
[1718253127756,21.7249,152.58,152.48,33.04]
[1718253128063,21.7249,152.58,152.54,8.26]
[1718253128447,15.1294,152.58,152.55,8.26]
[1718253128647,273.38567469,152.62,152.57,8.26]
[1718253128843,273.38567469,152.62,152.5,6.3829]
[1718253129152,281.64567469,152.62,152.57,8.26]
[1718253129330,273.38567469,152.62,152.56,8.26]
[1718253129531,281.64567469,152.62,152.57,8.26]
[1718253129745,273.38567469,152.62,152.57,8.26]
[1718253129952,273.38567469,152.62,152.58,8.26]
[1718253130567,267.34397469,152.62,152.58,8.26]
[1718253130738,267.34397469,152.62,152.59,8.26]
[1718253131533,252.21837469,152.62,152.59,8.26]
[1718253131732,252.21837469,152.62,152.6,8.26]
[1718253132938,252.21837469,152.62,152.55,24.74]
[1718253133241,252.21837469,152.62,152.56,20.34]
[1718253134259,252.21837469,152.62,152.56,20.17]
[1718253134462,252.21837469,152.62,152.56,20.0]
[1718253136544,252.21837469,152.62,152.55,20.0]
[1718253138592,252.21837469,152.62,152.53,20.0]
[1718253147372,0.17,152.63,152.53,20.0]
[1718253147571,0.34,152.63,152.53,20.0]
[1718253148146,23.2934,152.62,152.53,20.0]
[1718253148359,0.17,152.6,152.52,20.0]
[1718253148554,0.51,152.61,152.52,20.0]
[1718253148763,0.17,152.6,152.52,20.0]
[1718253149056,0.17,152.6,152.51,24.74]
[1718253149655,0.51,152.61,152.51,24.74]
[1718253149862,0.17,152.61,152.51,24.74]
[1718253150565,0.17,152.61,152.52,20.0]
[1718253151245,23.2934,152.62,152.52,20.0]
[1718253151646,23.1234,152.62,152.52,20.0]
[1718253151871,23.1234,152.62,152.53,0.17]
[1718253152166,23.1234,152.62,152.53,0.34]
[1718253152978,23.1234,152.62,152.58,8.25]
[1718253156093,23.1234,152.62,152.59,8.25]
[1718253160682,23.1234,152.62,152.53,0.34]
[1718253160861,23.1234,152.62,152.59,8.25]
[1718253163175,23.1234,152.62,152.53,0.34]
[1718253163378,23.1234,152.62,152.58,8.25]
[1718253164153,0.17,152.61,152.51,20.0]
[1718253164360,8.25,152.6,152.49,5.36569243]
[1718253164563,8.25,152.6,152.48,90.21241338]
[1718253164862,0.17,152.59,152.54,8.25]
[1718253165178,8.42,152.59,152.54,8.25]
[1718253165375,0.51,152.61,152.55,8.25]
[1718253165376,8.25,152.6,152.55,8.25]
[1718253165778,8.42,152.61,152.55,8.25]
[1718253166164,8.42,152.61,152.56,8.25]
[1718253166588,23.4634,152.62,152.56,8.25]
[1718253166589,31.7134,152.62,152.56,8.25]
[1718253166781,31.7134,152.62,152.57,8.25]
[1718253168991,31.7134,152.62,152.49,0.17]
[1718253169207,31.7134,152.62,152.57,8.25]
[1718253170566,23.1234,152.62,152.58,8.25]
[1718253170770,23.1234,152.62,152.59,8.25]
[1718253171500,23.1234,152.62,152.58,8.25]
[1718253173468,23.1234,152.62,152.49,3.1063]
[1718253173665,23.1234,152.62,152.58,8.25]
[1718253177181,23.1234,152.62,152.49,3.1063]
[1718253177370,23.1234,152.62,152.58,8.25]
[1718253180994,0.34,152.61,152.49,20.0]
[1718253181195,8.25,152.58,152.53,8.25]
[1718253181395,8.25,152.58,152.52,8.25]
[1718253181582,8.25,152.58,152.48,5.2655196]
[1718253181784,8.25,152.58,152.52,8.25]
[1718253182304,8.25,152.57,152.52,8.25]
[1718253182670,0.51,152.61,152.52,8.25]
[1718253182875,0.34,152.6,152.52,8.25]
[1718253183197,0.34,152.6,152.47,26.47514051]
[1718253183198,24.4021,152.56,152.47,15.2003]
[1718253183399,8.25,152.55,152.43,22.2646]
[1718253183581,8.25,152.54,152.49,8.25]
[1718253183783,8.25,152.54,152.43,27.38458734]
[1718253183995,8.25,152.54,152.49,8.25]
[1718253184288,16.1521,152.56,152.43,27.38458734]
[1718253184289,0.34,152.55,152.43,27.38458734]
[1718253184492,0.34,152.55,152.48,8.25]
[1718253184722,8.25,152.53,152.48,8.25]
[1718253185917,8.25,152.54,152.49,8.25]
[1718253186279,8.59,152.55,152.49,8.25]
[1718253187011,16.1521,152.56,152.52,8.25]
[1718253187310,16.1521,152.56,152.53,8.25]
[1718253188309,16.1521,152.56,152.52,8.25]
[1718253189913,16.1521,152.56,152.52,3.25]
[1718253190705,16.1521,152.56,152.53,8.25]
[1718253191392,16.1521,152.56,152.49,20.0]
[1718253191596,16.1521,152.56,152.52,8.25]
[1718253191908,16.1521,152.56,152.51,8.25]
[1718253192109,24.4021,152.56,152.49,20.0]
[1718253192406,24.4021,152.56,152.5,8.25]
[1718253193004,24.4021,152.56,152.51,8.25]
[1718253193915,16.1521,152.56,152.52,8.25]
[1718253195106,16.1521,152.56,152.48,33.0]
[1718253198216,24.4021,152.56,152.45,0.17]
[1718253198415,24.4021,152.56,152.51,8.25]
[1718253198591,24.4021,152.56,152.45,20.68]
[1718253198792,24.4021,152.56,152.51,8.25]
[1718253199212,16.1521,152.56,152.51,8.25]
[1718253199491,16.1521,152.56,152.52,8.25]
[1718253199702,15.9313,152.6,152.55,8.25]
[1718253199915,15.9313,152.6,152.57,8.25]
[1718253200094,15.9313,152.6,152.49,18.2244]
[1718253200095,15.9313,152.6,152.58,8.25]
[1718253200406,15.9313,152.6,152.5,2.5961]
[1718253200407,15.9313,152.6,152.5,0.17]
[1718253200601,15.9313,152.6,152.5,20.51]
[1718253200994,15.9313,152.6,152.55,8.25]
[1718253201193,15.9313,152.6,152.5,20.34]
[1718253201394,15.9313,152.6,152.57,8.25]
[1718253201615,15.9313,152.6,152.56,8.25]
[1718253202212,15.9313,152.6,152.58,8.25]
[1718253202395,15.8986,152.64,152.58,8.25]
[1718253202600,15.8986,152.64,152.59,8.25]
[1718253202818,24.1486,152.64,152.59,8.25]
[1718253205398,15.8986,152.64,152.59,8.25]
[1718253205625,15.8986,152.64,152.51,155.69767011]
[1718253205626,15.8986,152.64,152.61,8.25]
[1718253205798,15.8986,152.64,152.62,8.25]
[1718253206319,15.8986,152.64,152.61,8.25]
[1718253208321,15.8986,152.64,152.56,33.0]
[1718253208526,24.1486,152.64,152.58,8.25]
[1718253209743,15.8986,152.64,152.57,20.0]
[1718253210026,15.8986,152.64,152.61,8.25]
[1718253211336,15.8986,152.64,152.62,8.25]
[1718253212122,8.42,152.68,152.56,53.34]
[1718253212318,0.17,152.68,152.63,8.25]
[1718253212528,8.76,152.68,152.63,8.25]
[1718253213723,0.17,152.68,152.63,8.25]
[1718253213920,8.42,152.68,152.63,8.25]
[1718253216938,8.42,152.68,152.56,53.34]
[1718253217136,8.42,152.68,152.62,8.25]
[1718253217342,16.5956,152.69,152.63,8.25]
[1718253217542,24.8456,152.69,152.63,8.25]
[1718253224128,24.8456,152.69,152.57,0.34]
[1718253224322,24.8456,152.69,152.64,8.25]
[1718253225444,24.8456,152.69,152.63,8.25]
[1718253225748,16.5956,152.69,152.63,8.25]
[1718253226170,24.8456,152.69,152.64,8.25]
[1718253226754,8.25,152.68,152.63,8.25]
[1718253227133,8.25,152.68,152.58,0.34]
[1718253227327,8.25,152.68,152.63,8.25]
[1718253229344,8.25,152.67,152.62,8.25]
[1718253230356,8.42,152.68,152.62,8.25]
[1718253233850,8.42,152.68,152.58,0.34]
[1718253234051,8.42,152.68,152.62,8.25]
[1718253234252,0.17,152.68,152.62,8.25]
[1718253234447,0.34,152.68,152.62,8.25]
[1718253234652,8.59,152.68,152.62,8.25]
[1718253235660,8.25,152.68,152.63,8.25]
[1718253236171,24.8456,152.69,152.63,8.25]
[1718253243257,24.8456,152.69,152.56,53.0]
[1718253243258,0.17,152.68,152.56,53.0]
[1718253243465,0.17,152.68,152.55,15.4271]
[1718253243466,8.25,152.64,152.55,15.4271]
[1718253243658,8.25,152.63,152.57,8.25]
[1718253244872,8.25,152.63,152.58,8.25]
[1718253245076,8.25,152.63,152.55,15.4271]
[1718253245271,8.25,152.63,152.58,8.25]
[1718253245457,8.25,152.63,152.57,8.25]
[1718253246265,8.25,152.63,152.55,15.4271]
[1718253246466,8.25,152.63,152.57,8.25]
[1718253247265,8.25,152.63,152.55,15.4271]
[1718253247478,8.25,152.63,152.58,8.25]
[1718253250569,15.2401,152.64,152.58,8.25]
[1718253250768,8.25,152.63,152.58,8.25]
[1718253253367,8.25,152.63,152.51,27.22369105]
[1718253253572,8.25,152.63,152.58,8.25]
[1718253256269,0.17,152.62,152.52,0.17]
[1718253256471,0.17,152.62,152.55,8.25]
[1718253256472,8.25,152.6,152.55,8.25]
[1718253256675,8.25,152.6,152.52,20.0]
[1718253256986,8.25,152.58,152.53,8.25]
[1718253257286,8.25,152.58,152.48,33.0]
[1718253257501,8.25,152.58,152.53,8.25]
[1718253258070,8.25,152.58,152.48,38.22495667]
[1718253258376,8.25,152.58,152.53,8.25]
[1718253259176,8.25,152.58,152.48,0.17]
[1718253259379,8.25,152.58,152.53,8.25]
[1718253259678,16.336,152.59,152.53,8.25]
[1718253259679,24.586,152.59,152.53,8.25]
[1718253259884,0.17,152.58,152.53,8.25]
[1718253260092,0.17,152.58,152.54,8.25]
[1718253260790,24.416,152.59,152.54,8.25]
[1718253262282,16.166,152.59,152.54,8.25]
[1718253262485,16.166,152.59,152.56,8.25]
[1718253262889,24.416,152.59,152.54,8.25]
[1718253263096,24.416,152.59,152.48,0.51]
[1718253263398,8.25,152.58,152.53,8.25]
[1718253263776,24.416,152.59,152.53,8.25]
[1718253264176,8.25,152.58,152.48,53.51]
[1718253264382,8.25,152.57,152.48,53.51]
[1718253264601,8.25,152.57,152.52,8.25]
[1718253265386,8.25,152.58,152.53,8.25]
[1718253265584,16.166,152.59,152.48,53.51]
[1718253265585,16.166,152.59,152.54,8.25]
[1718253265789,16.166,152.59,152.53,8.25]
[1718253265790,24.416,152.59,152.53,8.25]
[1718253267305,0.17,152.58,152.53,8.25]
[1718253268012,16.166,152.59,152.54,8.25]
[1718253268185,24.416,152.59,152.54,8.25]
[1718253269221,16.166,152.59,152.55,8.25]
[1718253269506,16.166,152.59,152.57,8.25]
[1718253269707,6.5173,152.61,152.57,8.25]
[1718253269883,6.5173,152.61,152.58,8.25]
[1718253270202,6.5173,152.61,152.51,6.2427]
[1718253270391,6.5173,152.61,152.56,8.25]
[1718253270589,6.5173,152.61,152.57,8.25]
[1718253271881,6.5173,152.61,152.56,8.25]
[1718253272808,6.5173,152.61,152.55,8.25]
[1718253272809,14.7673,152.61,152.55,8.25]
[1718253274180,8.25,152.6,152.55,8.25]
[1718253274596,8.25,152.6,152.52,20.0]
[1718253274800,14.7673,152.61,152.56,8.25]
[1718253275111,6.5173,152.61,152.56,8.25]
[1718253276232,6.5173,152.61,152.5,0.17]
[1718253276410,14.7673,152.61,152.55,8.25]
[1718253277496,6.5173,152.61,152.55,8.25]
[1718253277695,14.7673,152.61,152.56,8.25]
[1718253278205,14.7673,152.61,152.5,0.68]
[1718253278403,14.7673,152.61,152.55,8.25]
[1718253280597,14.7673,152.61,152.56,8.25]
[1718253280598,6.5173,152.61,152.56,8.25]
[1718253281194,6.5173,152.61,152.57,8.25]
[1718253281715,23.7235,152.63,152.58,8.25]
[1718253283413,23.7235,152.63,152.52,15.3948]
[1718253283414,15.4735,152.63,152.52,15.3948]
[1718253283618,23.7235,152.63,152.58,8.25]
[1718253285925,8.25,152.61,152.52,15.3948]
[1718253286102,8.25,152.6,152.55,8.25]
[1718253290720,8.42,152.62,152.57,8.25]
[1718253290899,8.25,152.62,152.57,8.25]
[1718253291101,8.25,152.61,152.56,8.25]
[1718253291401,8.25,152.59,152.49,20.0]
[1718253291617,8.25,152.57,152.52,8.25]
[1718253293027,8.25,152.58,152.53,8.25]
[1718253293228,0.17,152.59,152.54,8.25]
[1718253293425,8.42,152.59,152.54,8.25]
[1718253293611,15.0097,152.6,152.55,8.25]
[1718253294623,14.8397,152.6,152.55,8.25]
[1718253295301,14.8397,152.6,152.47,27.00267481]
[1718253295501,8.25,152.59,152.48,20.68]
[1718253295707,8.25,152.59,152.53,8.25]
[1718253296025,8.25,152.59,152.54,8.25]
[1718253296199,8.25,152.59,152.48,53.0]
[1718253296607,8.25,152.59,152.54,8.25]
[1718253296925,6.5897,152.6,152.55,8.25]
[1718253297099,6.5897,152.6,152.56,8.25]
[1718253300427,14.8397,152.6,152.55,8.25]
[1718253301134,8.25,152.59,152.53,8.25]
[1718253302027,8.25,152.58,152.48,20.0]
[1718253302231,8.25,152.58,152.53,8.25]
[1718253302624,23.6258,152.58,152.53,8.25]
[1718253302821,23.6258,152.58,152.48,20.0]
[1718253302822,8.25,152.56,152.48,20.0]
[1718253303019,8.25,152.56,152.51,8.25]
[1718253304329,15.3758,152.58,152.51,8.25]
[1718253304638,8.42,152.57,152.51,8.25]
[1718253304841,8.25,152.57,152.51,8.25]
[1718253305041,8.25,152.57,152.52,8.25]
[1718253307537,8.25,152.57,152.48,53.0]
[1718253308244,0.17,152.57,152.47,15.4294]
[1718253308427,0.68,152.57,152.49,8.25]
[1718253308739,15.3758,152.58,152.54,8.25]
[1718253308912,8.25,152.57,152.48,16.594]
[1718253309119,8.25,152.54,152.44,28.24754775]
[1718253309530,8.25,152.54,152.49,8.25]
[1718253309730,15.3758,152.58,152.49,8.25]
[1718253309943,8.25,152.55,152.5,8.25]
[1718253310141,8.25,152.56,152.5,8.25]
[1718253310325,0.17,152.55,152.5,8.25]
[1718253310524,15.3758,152.58,152.51,8.25]
[1718253310733,23.6258,152.58,152.52,8.25]
[1718253311042,8.25,152.57,152.52,8.25]
[1718253311821,23.6258,152.58,152.52,8.25]
[1718253312651,6.5897,152.6,152.49,21.8973]
[1718253312830,15.7555,152.62,152.58,8.25]
[1718253313336,24.0055,152.62,152.57,8.25]
[1718253313533,24.0055,152.62,152.51,0.17]
[1718253313736,15.7555,152.62,152.56,8.25]
[1718253313942,8.25,152.61,152.56,8.25]
[1718253314243,15.7555,152.62,152.51,0.17]
[1718253314436,15.7555,152.62,152.57,8.25]
[1718253315241,15.7555,152.62,152.51,0.17]
[1718253315440,6.2861,152.64,152.59,8.25]
[1718253315747,6.2861,152.64,152.6,8.25]
[1718253317323,6.2861,152.64,152.59,8.25]
[1718253317648,8.25,152.63,152.58,8.25]
[1718253318148,14.5361,152.64,152.58,8.25]
[1718253318946,15.5274,152.66,152.56,8.25]
[1718253319240,23.7774,152.66,152.61,8.25]
[1718253320343,15.5274,152.66,152.61,8.25]
[1718253320536,15.5274,152.66,152.62,8.25]
[1718253320731,8.42,152.67,152.57,0.17]
[1718253320732,6.6602,152.68,152.64,8.25]
[1718253320932,16.4805,152.7,152.65,8.25]
[1718253320933,24.7305,152.7,152.65,8.25]
[1718253322419,24.7305,152.7,152.66,8.25]
[1718253322420,16.4805,152.7,152.66,8.25]
[1718253324328,24.7305,152.7,152.65,8.25]
[1718253325860,16.4805,152.7,152.66,8.25]
[1718253328052,16.4805,152.7,152.61,15.6534]
[1718253328053,24.7305,152.7,152.61,15.6534]
[1718253328247,8.25,152.68,152.62,20.0]
[1718253328443,16.4805,152.7,152.64,8.25]
[1718253328641,8.25,152.69,152.63,8.25]
[1718253328849,8.25,152.67,152.57,20.60808207]
[1718253329053,8.25,152.67,152.62,8.25]
[1718253330155,8.25,152.67,152.58,0.17]
[1718253330467,8.25,152.67,152.62,8.25]
[1718253330636,16.4805,152.7,152.62,8.25]
[1718253330637,8.25,152.68,152.62,8.25]
[1718253331267,8.25,152.68,152.58,20.68]
[1718253331460,8.25,152.68,152.62,8.25]
[1718253332132,0.17,152.69,152.62,8.25]
[1718253332133,8.25,152.67,152.62,8.25]
[1718253333452,8.25,152.67,152.58,20.0]
[1718253333647,8.25,152.65,152.6,8.25]
[1718253335033,8.25,152.65,152.57,15.4451]
[1718253335251,8.25,152.65,152.6,8.25]
[1718253335663,6.0751,152.66,152.62,8.25]
[1718253336171,14.3251,152.66,152.61,8.25]
[1718253338855,6.0751,152.66,152.62,8.25]
[1718253340653,22.9869,152.7,152.65,8.25]
[1718253340872,22.9869,152.7,152.66,8.25]
[1718253341052,22.9869,152.7,152.58,2.5948]
[1718253341053,22.9869,152.7,152.65,8.25]
[1718253341568,31.2369,152.7,152.65,8.25]
[1718253342767,31.2369,152.7,152.64,8.25]
[1718253343347,22.9869,152.7,152.64,8.25]
[1718253343566,8.25,152.68,152.63,8.25]
[1718253343792,8.25,152.67,152.62,8.25]
[1718253345562,8.25,152.67,152.57,15.4451]
[1718253345854,8.25,152.67,152.62,8.25]
[1718253346058,8.25,152.67,152.58,20.0]
[1718253346258,8.25,152.67,152.62,8.25]
[1718253346652,0.17,152.69,152.62,8.25]
[1718253346862,8.25,152.67,152.62,8.25]
[1718253347236,8.25,152.68,152.63,8.25]
[1718253349276,8.25,152.68,152.58,20.0]
[1718253349576,8.25,152.67,152.62,8.25]
[1718253351299,8.25,152.66,152.61,8.25]
[1718253351947,8.25,152.66,152.58,20.0]
[1718253352152,8.25,152.66,152.61,8.25]
[1718253352373,8.25,152.67,152.61,8.25]
[1718253353272,8.25,152.67,152.58,20.0]
[1718253353452,8.42,152.66,152.58,20.0]
[1718253353653,15.2581,152.65,152.6,8.25]
[1718253353847,15.2581,152.65,152.57,20.0]
[1718253354063,23.5081,152.65,152.6,8.25]
[1718253355178,15.2581,152.65,152.6,8.25]
[1718253355584,15.2581,152.65,152.61,8.25]
[1718253358277,23.5081,152.65,152.57,20.0]
[1718253358881,23.5081,152.65,152.6,8.25]
[1718253359075,23.5081,152.65,152.59,8.25]
[1718253361065,23.5081,152.65,152.56,20.0]
[1718253361260,0.17,152.63,152.56,20.0]
[1718253361468,8.25,152.62,152.56,8.25]
[1718253361689,8.25,152.62,152.57,8.25]
[1718253361864,8.59,152.63,152.57,8.25]
[1718253362867,8.59,152.63,152.58,8.25]
[1718253363064,8.59,152.63,152.57,8.25]
[1718253364181,8.25,152.62,152.57,8.25]
[1718253365460,6.0398,152.64,152.59,8.25]
[1718253365679,15.2581,152.65,152.61,8.25]
[1718253365881,15.2581,152.65,152.57,0.17]
[1718253365882,15.2581,152.65,152.62,8.25]
[1718253366079,15.2581,152.65,152.61,8.25]
[1718253366304,15.2581,152.65,152.56,33.0]
[1718253366488,15.2581,152.65,152.61,8.25]
[1718253368481,15.2581,152.65,152.62,8.25]
[1718253368664,15.2581,152.65,152.57,20.17]
[1718253368861,15.2581,152.65,152.62,8.25]
[1718253370610,6.0577,152.68,152.62,8.25]
[1718253370920,14.3077,152.68,152.63,8.25]
[1718253371205,14.3077,152.68,152.62,8.25]
[1718253371884,8.25,152.67,152.62,8.25]
[1718253374108,8.25,152.67,152.61,8.25]
[1718253374310,8.42,152.66,152.57,20.0]
[1718253374487,8.42,152.66,152.6,8.25]
[1718253375203,8.42,152.66,152.57,20.0]
[1718253375204,8.76,152.65,152.59,8.25]
[1718253375415,8.25,152.65,152.59,8.25]
[1718253375785,8.25,152.65,152.6,8.25]
[1718253380599,0.17,152.66,152.61,8.25]
[1718253380802,8.25,152.66,152.61,8.25]
[1718253381111,8.59,152.67,152.61,8.25]
[1718253381503,0.17,152.67,152.61,8.25]
[1718253381808,8.42,152.67,152.61,8.25]
[1718253384726,8.42,152.67,152.57,20.0]
[1718253385017,8.42,152.67,152.56,0.17]
[1718253385018,8.42,152.67,152.61,8.25]
[1718253385207,8.25,152.66,152.61,8.25]
[1718253385524,6.0577,152.68,152.61,8.25]
[1718253385731,8.25,152.67,152.61,8.25]
[1718253385909,8.25,152.66,152.61,8.25]
[1718253388222,8.25,152.65,152.6,8.25]
[1718253388420,8.25,152.65,152.56,20.17]
[1718253388724,8.25,152.65,152.6,8.25]
[1718253391108,8.42,152.66,152.61,8.25]
[1718253391424,8.25,152.65,152.6,8.25]
[1718253392412,8.25,152.65,152.56,33.0]
[1718253392722,8.25,152.65,152.6,8.25]
[1718253393428,8.25,152.65,152.56,33.0]
[1718253393610,8.25,152.65,152.6,8.25]
[1718253394221,8.25,152.65,152.56,33.0]
[1718253394523,8.25,152.65,152.6,8.25]
[1718253396010,0.17,152.67,152.61,8.25]
[1718253396347,6.0577,152.68,152.57,20.0]
[1718253396348,8.25,152.66,152.57,20.0]
[1718253396631,8.25,152.67,152.62,8.25]
[1718253397727,14.4777,152.68,152.58,15.4048]
[1718253398030,14.3077,152.68,152.63,8.25]
[1718253398918,14.3077,152.68,152.58,15.4048]
[1718253398919,6.0577,152.68,152.58,15.4048]
[1718253399126,0.17,152.65,152.54,15.5951]
[1718253401312,8.25,152.62,152.57,8.25]
[1718253401512,6.8844,152.65,152.58,8.25]
[1718253401730,8.25,152.63,152.58,8.25]
[1718253402334,8.25,152.63,152.51,0.34]
[1718253402549,8.25,152.63,152.58,8.25]
[1718253403147,8.25,152.64,152.53,0.17]
[1718253403310,8.25,152.63,152.53,0.34]
[1718253403639,8.25,152.63,152.58,8.25]
[1718253403823,8.25,152.63,152.54,0.34]
[1718253404013,8.25,152.63,152.58,8.25]
[1718253404415,8.25,152.62,152.57,8.25]
[1718253405113,15.2215,152.61,152.51,6.87982666]
[1718253405316,15.2215,152.61,152.5,20.95501842]
[1718253405317,8.25,152.56,152.5,20.95501842]
[1718253405622,6.482,152.6,152.55,8.25]
[1718253405827,6.482,152.6,152.56,8.25]
[1718253406227,8.25,152.59,152.5,27.83484508]
[1718253406411,6.482,152.6,152.54,8.25]
[1718253406412,14.732,152.6,152.54,8.25]
[1718253406613,8.25,152.59,152.5,27.83484508]
[1718253407035,6.482,152.6,152.56,8.25]
[1718253407342,6.482,152.6,152.5,27.83484508]
[1718253407644,8.25,152.59,152.54,8.25]
[1718253407823,8.25,152.59,152.51,20.0]